bitfinex/quotes_SOLUSD_20230702
["timestamp","ask_amount","ask_price","bid_price","bid_amount"]
[1688321349589,20.0,19.265,19.253,76.969]
[1688321349795,21.962,19.261,19.253,76.969]
[1688321353517,21.962,19.261,19.253,55.0]
[1688321353702,21.962,19.261,19.252,55.0]
[1688321354107,21.962,19.261,19.252,76.971]
[1688321355422,21.962,19.261,19.252,55.0]
[1688321356126,21.962,19.261,19.252,76.971]
[1688321357722,21.962,19.261,19.25,21.973]
[1688321359017,21.962,19.261,19.251,55.0]
[1688321359218,21.962,19.261,19.251,76.971]
[1688321361918,123.137,19.266,19.251,76.971]
[1688321361919,21.96,19.262,19.251,76.971]
[1688321362114,20.0,19.266,19.251,76.971]
[1688321362314,20.0,19.269,19.251,87.80819922]
[1688321362623,20.0,19.265,19.251,76.971]
[1688321362803,20.0,19.269,19.251,76.971]
[1688321363211,20.791438,19.27,19.251,76.971]
[1688321363506,20.0,19.269,19.251,76.971]
[1688321364121,21.961,19.261,19.251,76.971]
[1688321366105,21.957,19.265,19.251,76.971]
[1688321366307,21.957,19.265,19.252,20.0]
[1688321366522,21.957,19.265,19.255,78.521]
[1688321367120,21.955,19.267,19.259,21.963]
[1688321367500,21.955,19.267,19.262,21.96]
[1688321367702,21.955,19.267,19.263,55.0]
[1688321367915,21.955,19.267,19.263,76.958]
[1688321368635,21.955,19.267,19.261,21.96]
[1688321368804,21.955,19.267,19.262,55.0]
[1688321369219,21.955,19.267,19.261,21.961]
[1688321372120,21.955,19.267,19.258,21.964]
[1688321373623,20.0,19.266,19.258,21.964]
[1688321373811,21.958,19.264,19.258,21.964]
[1688321375609,21.958,19.264,19.256,21.966]
[1688321375918,21.958,19.264,19.255,91.5116]
[1688321376120,21.958,19.264,19.244,103.252]
[1688321376419,21.958,19.264,19.249,21.974]
[1688321378525,21.958,19.264,19.25,55.0]
[1688321378716,21.958,19.264,19.254,21.969]
[1688321379021,21.958,19.264,19.255,55.0]
[1688321379327,21.958,19.264,19.252,21.97]
[1688321379506,21.958,19.264,19.253,55.0]
[1688321380508,21.958,19.264,19.253,76.97]
[1688321385623,21.958,19.264,19.25,21.973]
[1688321385811,21.958,19.264,19.247,56.577]
[1688321387027,21.958,19.264,19.248,55.0]
[1688321387230,21.958,19.264,19.251,21.972]
[1688321387431,21.958,19.264,19.252,55.0]
[1688321387728,21.958,19.264,19.252,76.971]
[1688321389519,21.958,19.264,19.256,21.966]
[1688321389831,21.958,19.264,19.257,76.965]
[1688321390724,21.958,19.264,19.257,55.0]
[1688321392520,21.958,19.264,19.255,21.967]
[1688321392927,21.958,19.264,19.256,55.0]
[1688321393833,21.958,19.264,19.256,76.967]
[1688321400041,125.103,19.264,19.256,55.0]
[1688321400239,125.103,19.264,19.255,55.0]
[1688321401230,125.103,19.264,19.254,21.969]
[1688321401543,125.103,19.264,19.25,22.33]
[1688321401723,125.103,19.264,19.244,21.979]
[1688321401935,22.5,19.26,19.242,92.5268]
[1688321402137,181.721,19.255,19.243,21.981]
[1688321402330,20.0,19.254,19.243,21.981]
[1688321402537,21.973,19.251,19.243,21.981]
[1688321403030,21.973,19.251,19.242,21.983]
[1688321403622,21.973,19.251,19.243,55.0]
[1688321403841,21.973,19.251,19.239,93.2219]
[1688321404342,21.973,19.251,19.239,115.2069]
[1688321405446,21.973,19.251,19.24,55.0]
[1688321405643,21.973,19.251,19.243,21.981]
[1688321405847,21.973,19.251,19.244,55.0]
[1688321406046,21.973,19.251,19.244,76.98]
[1688321406542,21.973,19.251,19.244,55.0]
[1688321406842,21.973,19.251,19.243,55.0]
[1688321407044,21.973,19.251,19.243,76.981]
[1688321407350,21.973,19.251,19.236,21.989]
[1688321407533,21.973,19.251,19.238,21.986]
[1688321408660,21.973,19.251,19.237,21.988]
[1688321408847,55.0,19.25,19.237,21.988]
[1688321409030,78.56,19.247,19.237,21.988]
[1688321410045,21.978,19.247,19.238,55.0]
[1688321410248,21.978,19.247,19.24,21.984]
[1688321410449,21.978,19.247,19.241,55.0]
[1688321410634,21.978,19.247,19.242,21.982]
[1688321412140,56.564,19.253,19.243,55.0]
[1688321412341,56.547,19.259,19.246,21.978]
[1688321412550,56.547,19.259,19.247,55.0]
[1688321412856,21.968,19.255,19.25,21.973]
[1688321413053,21.968,19.255,19.251,55.0]
[1688321413350,20.0,19.254,19.251,76.972]
[1688321413658,41.969,19.254,19.251,76.972]
[1688321413836,21.969,19.254,19.251,76.972]
[1688321414034,21.966,19.258,19.251,76.972]
[1688321414253,56.537,19.262,19.251,76.972]
[1688321414254,21.966,19.257,19.251,76.972]
[1688321415549,56.537,19.266,19.251,76.972]
[1688321415757,76.529,19.265,19.251,76.972]
[1688321417351,21.961,19.261,19.251,76.972]
[1688321417651,21.959,19.263,19.251,76.972]
[1688321417853,56.519,19.268,19.251,76.972]
[1688321418035,20.0,19.267,19.251,76.972]
[1688321419258,21.958,19.264,19.251,76.972]
[1688321426055,21.958,19.264,19.251,180.187]
[1688321429167,56.508,19.272,19.252,20.0]
[1688321429459,56.508,19.272,19.258,21.964]
[1688321429460,21.954,19.267,19.258,21.964]
[1688321429643,21.954,19.267,19.259,55.0]
[1688321429846,21.954,19.267,19.26,21.961]
[1688321430159,21.954,19.267,19.261,55.0]
[1688321431166,21.954,19.267,19.261,76.96]
[1688321435554,21.952,19.269,19.261,76.96]
[1688321435858,56.499,19.275,19.261,180.121]
[1688321436059,21.95,19.271,19.261,76.96]
[1688321443357,42.43,19.27,19.253,56.561]
[1688321443549,21.957,19.265,19.253,153.0562]
[1688321443751,20.0,19.264,19.253,153.0562]
[1688321444047,21.96,19.262,19.253,153.0562]
[1688321445162,21.96,19.262,19.256,21.966]
[1688321445465,21.958,19.264,19.257,55.0]
[1688321445666,21.958,19.264,19.259,21.963]
[1688321445868,21.958,19.264,19.26,76.962]
[1688321446070,21.958,19.264,19.261,55.0]
[1688321447068,21.958,19.264,19.261,76.961]
[1688321448554,56.515,19.269,19.261,76.961]
[1688321448755,21.956,19.266,19.261,76.961]
[1688321449767,21.956,19.266,19.259,21.962]
[1688321451871,21.956,19.266,19.254,91.0886]
[1688321452166,21.956,19.266,19.257,21.965]
[1688321452366,21.956,19.266,19.26,21.962]
[1688321452566,21.956,19.266,19.261,55.0]
[1688321452867,21.956,19.266,19.261,76.96]
[1688321453966,56.514,19.27,19.261,76.96]
[1688321454167,21.955,19.267,19.261,76.96]
[1688321456770,21.955,19.267,19.259,21.962]
[1688321458753,21.955,19.267,19.254,56.558]
[1688321458955,21.955,19.267,19.257,21.965]
[1688321459172,20.0,19.266,19.257,21.965]
[1688321459376,21.958,19.264,19.257,21.965]
[1688321460570,21.958,19.264,19.258,55.0]
[1688321461158,21.958,19.264,19.257,55.0]
[1688321461870,21.958,19.264,19.252,21.971]
[1688321462077,21.958,19.264,19.251,95.9853]
[1688321462468,21.958,19.264,19.253,21.969]
[1688321463074,21.958,19.264,19.254,55.0]
[1688321466278,21.958,19.264,19.253,55.0]
[1688321468177,21.958,19.264,19.25,99.8944]
[1688321468386,22.5,19.26,19.245,21.978]
[1688321468691,181.712,19.256,19.245,21.978]
[1688321468877,21.971,19.252,19.245,21.978]
[1688321469066,21.971,19.252,19.243,118.5778]
[1688321470172,21.971,19.252,19.244,55.0]
[1688321470475,21.971,19.252,19.246,21.978]
[1688321470669,21.97,19.253,19.248,21.975]
[1688321471064,21.97,19.253,19.249,55.0]
[1688321471263,21.97,19.253,19.249,76.974]
[1688321472070,21.97,19.253,19.249,55.0]
[1688321472975,21.97,19.253,19.248,55.0]
[1688321475672,21.969,19.254,19.248,76.975]
[1688321475879,21.968,19.255,19.248,76.975]
[1688321476773,21.967,19.257,19.248,76.975]
[1688321478180,56.537,19.262,19.248,76.975]
[1688321478484,21.965,19.258,19.25,22.5]
[1688321478662,21.965,19.258,19.252,21.971]
[1688321478870,21.965,19.258,19.25,22.5]
[1688321479178,21.965,19.258,19.251,55.0]
[1688321479380,21.965,19.258,19.248,21.975]
[1688321479587,21.965,19.258,19.246,21.977]
[1688321480784,21.965,19.258,19.25,21.973]
[1688321480967,21.965,19.258,19.253,21.97]
[1688321481169,21.965,19.258,19.254,55.0]
[1688321481887,21.962,19.26,19.254,76.968]
[1688321482086,21.962,19.261,19.254,76.968]
[1688321483179,21.962,19.261,19.255,20.0]
[1688321483373,21.962,19.261,19.256,76.966]
[1688321485484,90.69793224,19.271,19.256,133.519]
[1688321485679,34.18693224,19.271,19.256,133.519]
[1688321486391,21.955,19.267,19.256,133.519]
[1688321486575,21.954,19.268,19.256,133.519]
[1688321487792,64.49111453,19.275,19.256,133.519]
[1688321488094,21.953,19.269,19.256,133.519]
[1688321489890,21.953,19.269,19.26,22.33]
[1688321490190,21.953,19.269,19.262,21.959]
[1688321490388,103.08,19.277,19.263,55.0]
[1688321490691,21.948,19.273,19.267,21.954]
[1688321490889,21.948,19.273,19.268,55.0]
[1688321491204,21.948,19.273,19.264,91.4234]
[1688321491372,21.948,19.273,19.265,55.0]
[1688321495786,21.948,19.273,19.265,76.956]
[1688321496895,21.948,19.273,19.265,55.0]
[1688321500799,21.948,19.273,19.265,76.956]
[1688321505211,21.946,19.274,19.265,76.956]
[1688321505503,56.485,19.28,19.265,76.956]
[1688321506106,21.942,19.278,19.265,76.956]
[1688321514196,20.0,19.285,19.265,76.956]
[1688321514385,20.0,19.284,19.265,76.956]
[1688321514587,20.0,19.286,19.265,76.956]
[1688321514795,20.0,19.286,19.27,22.28]
[1688321514997,21.938,19.281,19.274,21.945]
[1688321515208,21.938,19.282,19.275,55.0]
[1688321515399,21.938,19.282,19.278,21.941]
[1688321515606,21.938,19.282,19.279,55.0]
[1688321516898,21.938,19.282,19.276,21.944]
[1688321517101,21.938,19.282,19.277,55.0]
[1688321517300,21.938,19.282,19.276,55.0]
[1688321517699,21.938,19.282,19.276,76.944]
[1688321520712,21.938,19.282,19.276,55.0]
[1688321520904,21.938,19.282,19.275,55.0]
[1688321521415,21.938,19.282,19.275,76.945]
[1688321524218,103.013,19.289,19.275,76.945]
[1688321524408,112.43,19.3,19.276,10.83719922]
[1688321524409,102.992,19.293,19.276,10.83719922]
[1688321524609,21.93,19.289,19.281,21.938]
[1688321525213,56.437,19.296,19.282,55.0]
[1688321525419,21.929,19.289,19.282,55.0]
[1688321527211,21.929,19.289,19.28,21.938]
[1688321527418,20.0,19.288,19.26,112.57]
[1688321527608,78.416,19.282,19.272,21.947]
[1688321528599,78.416,19.282,19.272,21.948]
[1688321528808,22.5,19.28,19.262,56.535]
[1688321529008,78.444,19.275,19.265,21.956]
[1688321529329,20.0,19.274,19.265,21.956]
[1688321529619,21.949,19.272,19.264,21.958]
[1688321531733,21.949,19.272,19.261,92.1291]
[1688321532017,21.949,19.272,19.263,21.958]
[1688321532501,21.949,19.272,19.264,55.0]
[1688321532709,125.051,19.272,19.253,103.202]
[1688321532911,125.051,19.272,19.255,95.8076]
[1688321533115,125.051,19.272,19.254,20.0]
[1688321533116,22.28,19.27,19.253,103.202]
[1688321533313,21.957,19.265,19.258,21.964]
[1688321534128,21.957,19.265,19.259,55.0]
[1688321534328,21.957,19.265,19.25,192.58919922]
[1688321534516,21.957,19.265,19.251,92.6729]
[1688321534517,20.0,19.264,19.251,92.6729]
[1688321534715,21.962,19.261,19.253,21.97]
[1688321535032,125.395,19.27,19.253,21.97]
[1688321535329,21.957,19.265,19.253,32.80719922]
[1688321535509,21.957,19.265,19.254,55.0]
[1688321535821,21.957,19.265,19.257,21.965]
[1688321536022,21.957,19.265,19.258,55.0]
[1688321536207,21.957,19.265,19.26,21.962]
[1688321536414,21.957,19.265,19.261,55.0]
[1688321537405,21.957,19.265,19.253,10.83719922]
[1688321537722,20.0,19.264,19.254,21.968]
[1688321537913,21.961,19.261,19.254,21.968]
[1688321538113,21.961,19.261,19.253,21.97]
[1688321539524,21.961,19.261,19.254,55.0]
[1688321540332,21.961,19.261,19.253,55.0]
[1688321540828,21.961,19.261,19.254,21.968]
[1688321541031,21.961,19.261,19.255,55.0]
[1688321541327,21.961,19.261,19.255,76.967]
[1688321543322,21.961,19.261,19.255,55.0]
[1688321543631,21.961,19.261,19.249,21.974]
[1688321543921,21.961,19.261,19.241,458.896]
[1688321544121,21.961,19.261,19.245,21.978]
[1688321544122,22.5,19.26,19.245,21.978]
[1688321544306,181.713,19.256,19.245,21.978]
[1688321546406,78.522,19.256,19.245,21.978]
[1688321546817,21.967,19.256,19.245,21.978]
[1688321547627,103.124,19.269,19.25,22.38]
[1688321547822,112.33,19.28,19.255,21.967]
[1688321547823,21.958,19.264,19.255,21.967]
[1688321548025,21.958,19.264,19.256,55.0]
[1688321548227,21.958,19.264,19.258,21.964]
[1688321548417,21.958,19.264,19.259,55.0]
[1688321548730,21.957,19.265,19.26,21.962]
[1688321548929,21.957,19.265,19.261,76.96]
[1688321549315,78.484,19.265,19.257,21.965]
[1688321550610,78.484,19.265,19.258,55.0]
[1688321550815,78.484,19.265,19.258,76.964]
[1688321551732,78.484,19.265,19.252,21.971]
[1688321552026,78.502,19.261,19.252,21.971]
[1688321552814,78.502,19.261,19.25,21.972]
[1688321553815,21.962,19.261,19.25,21.972]
[1688321554026,21.962,19.261,19.251,55.0]
[1688321554326,21.962,19.261,19.254,21.969]
[1688321554529,21.962,19.261,19.255,55.0]
[1688321554832,21.962,19.261,19.256,21.966]
[1688321555020,21.962,19.261,19.257,55.0]
[1688321556229,21.962,19.261,19.256,55.0]
[1688321561434,22.48,19.27,19.256,21.966]
[1688321561435,103.118,19.27,19.256,21.966]
[1688321561736,103.118,19.27,19.257,65.83719922]
[1688321562033,21.958,19.265,19.26,21.961]
[1688321562223,21.958,19.265,19.261,76.961]
[1688321562428,21.958,19.265,19.258,21.963]
[1688321562632,21.958,19.265,19.262,55.0]
[1688321563439,21.958,19.265,19.257,10.83719922]
[1688321563440,21.958,19.265,19.244,26.43720709]
[1688321563644,20.0,19.264,19.247,159.814]
[1688321563938,21.963,19.259,19.25,21.973]
[1688321564430,21.963,19.259,19.25,32.81019922]
[1688321564935,21.963,19.259,19.253,21.97]
[1688321565133,21.963,19.259,19.254,76.968]
[1688321565440,21.963,19.259,19.254,21.968]
[1688321565747,21.963,19.259,19.255,55.0]
[1688321565925,21.963,19.259,19.255,76.968]
[1688321566437,21.963,19.259,19.255,55.0]
[1688321568441,21.96,19.262,19.255,87.80519922]
[1688321568646,21.959,19.263,19.255,76.968]
[1688321568939,21.959,19.263,19.256,5.83719922]
[1688321569238,21.959,19.263,19.258,21.964]
[1688321569445,21.957,19.265,19.258,21.964]
[1688321569639,21.957,19.265,19.259,55.0]
[1688321569833,21.957,19.265,19.26,21.961]
[1688321570143,21.957,19.265,19.261,55.0]
[1688321570449,44.91,19.29,19.261,87.79719922]
[1688321570747,21.947,19.274,19.261,87.79719922]
[1688321570930,21.947,19.274,19.262,127.93049922]
[1688321571130,21.947,19.274,19.265,78.481]
[1688321571447,21.947,19.274,19.265,89.31819922]
[1688321571643,21.947,19.274,19.266,55.0]
[1688321571833,21.947,19.274,19.268,21.953]
[1688321572038,21.947,19.274,19.269,55.0]
[1688321572943,21.947,19.274,19.268,76.953]
[1688321575345,21.945,19.275,19.268,76.953]
[1688321577737,21.944,19.276,19.268,76.953]
[1688321578060,21.943,19.277,19.268,76.953]
[1688321578233,21.942,19.278,19.268,76.953]
[1688321582637,56.48,19.287,19.268,55.0]
[1688321582831,21.942,19.278,19.268,76.953]
[1688321585361,185.26658989,19.289,19.268,87.79019922]
[1688321585660,21.934,19.286,19.27,22.49]
[1688321585865,21.934,19.286,19.275,78.44]
[1688321586158,21.934,19.286,19.279,21.94]
[1688321586360,44.84,19.3,19.279,21.94]
[1688321586658,21.931,19.287,19.283,21.935]
[1688321586839,21.931,19.287,19.284,55.0]
[1688321588647,21.931,19.287,19.277,56.491]
[1688321588847,21.931,19.287,19.278,55.0]
[1688321589362,21.431,19.287,19.279,21.939]
[1688321589561,21.431,19.287,19.28,76.939]
[1688321598464,21.431,19.287,19.28,55.0]
[1688321598654,21.431,19.287,19.279,55.0]
[1688321599461,20.0,19.286,19.276,21.943]
[1688321599670,21.936,19.283,19.276,21.943]
[1688321600570,21.936,19.283,19.277,55.0]
[1688321600757,21.936,19.283,19.278,21.941]
[1688321600948,21.936,19.283,19.279,55.0]
[1688321601349,21.936,19.283,19.278,55.0]
[1688321607256,21.936,19.283,19.278,76.942]
[1688321608568,21.936,19.283,19.278,74.442]
[1688321609454,21.935,19.284,19.278,74.442]
[1688321609647,21.935,19.285,19.278,74.442]
[1688321615479,21.934,19.285,19.278,74.442]
[1688321615673,21.933,19.286,19.278,74.442]
[1688321617369,21.931,19.288,19.278,85.27919922]
[1688321618362,21.929,19.29,19.279,10.83719922]
[1688321618567,21.927,19.291,19.286,21.933]
[1688321618767,21.927,19.291,19.287,76.931]
[1688321619372,159.414,19.296,19.287,76.931]
[1688321619373,21.926,19.293,19.287,76.931]
[1688321621679,21.926,19.293,19.287,55.0]
[1688321622486,21.926,19.293,19.286,55.0]
[1688321622976,21.926,19.293,19.286,76.932]
[1688321625183,21.926,19.293,19.282,21.936]
[1688321625583,21.926,19.293,19.28,119.4766]
[1688321628888,21.926,19.293,19.281,55.0]
[1688321629179,22.43,19.29,19.273,56.502]
[1688321629363,181.43,19.286,19.275,21.944]
[1688321630572,181.43,19.286,19.277,21.942]
[1688321630781,181.43,19.286,19.278,55.0]
[1688321631181,181.43,19.286,19.278,76.942]
[1688321632685,78.4,19.286,19.278,76.942]
[1688321634692,21.933,19.286,19.278,76.942]
[1688321636590,21.933,19.286,19.276,21.943]
[1688321636785,21.937,19.282,19.275,21.945]
[1688321636989,21.937,19.282,19.272,92.7499]
[1688321637190,21.937,19.282,19.273,21.946]
[1688321637891,21.937,19.282,19.274,55.0]
[1688321639395,22.43,19.28,19.265,21.955]
[1688321639696,181.524,19.276,19.262,21.959]
[1688321639990,21.953,19.268,19.26,21.961]
[1688321641577,21.953,19.268,19.261,55.0]
[1688321643782,21.953,19.268,19.26,55.0]
[1688321644796,122.53,19.268,19.257,119.8794]
[1688321645199,122.53,19.268,19.25,79.068]
[1688321645498,122.53,19.268,19.251,50.0]
[1688321645680,122.53,19.268,19.252,21.971]
[1688321645875,122.53,19.268,19.253,20.0]
[1688321646081,122.53,19.268,19.253,41.969]
[1688321646677,122.53,19.268,19.254,76.969]
[1688321646879,122.53,19.268,19.255,20.0]
[1688321647097,122.53,19.268,19.256,55.0]
[1688321647699,122.53,19.268,19.255,20.0]
[1688321647997,122.53,19.268,19.254,20.0]
[1688321648501,122.53,19.268,19.25,20.0]
[1688321649083,122.53,19.268,19.253,21.97]
[1688321649282,122.53,19.268,19.254,75.0]
[1688321649797,122.53,19.268,19.254,96.969]
[1688321650300,44.58419971,19.267,19.241,103.267]
[1688321650492,78.507,19.26,19.248,21.975]
[1688321650894,21.963,19.26,19.248,21.975]
[1688321651989,21.963,19.26,19.249,55.0]
[1688321652297,21.963,19.26,19.249,76.974]
[1688321652607,21.963,19.26,19.249,170.0643]
[1688321653506,21.963,19.26,19.249,93.0903]
[1688321653690,21.963,19.26,19.249,115.0643]
[1688321654405,21.963,19.26,19.241,56.595]
[1688321654406,44.233,19.26,19.241,56.595]
[1688321654709,21.963,19.26,19.249,21.975]
[1688321655898,21.963,19.26,19.25,55.0]
[1688321656701,21.963,19.26,19.249,55.0]
[1688321656903,21.963,19.26,19.245,91.5691]
[1688321657201,21.963,19.26,19.249,21.974]
[1688321657407,21.963,19.26,19.25,55.0]
[1688321657590,21.963,19.26,19.251,21.972]
[1688321657907,21.963,19.26,19.252,55.0]
[1688321658505,21.963,19.26,19.252,76.971]
[1688321658808,21.956,19.266,19.252,180.181]
[1688321658995,21.956,19.266,19.253,20.0]
[1688321659311,21.956,19.266,19.256,78.517]
[1688321659608,21.956,19.266,19.259,21.962]
[1688321660002,21.954,19.268,19.26,55.0]
[1688321660204,21.954,19.268,19.262,21.959]
[1688321660396,21.954,19.268,19.263,55.0]
[1688321660705,21.954,19.268,19.263,76.959]
[1688321662192,21.954,19.268,19.26,21.961]
[1688321662391,21.954,19.268,19.258,21.964]
[1688321662601,21.954,19.268,19.255,149.7649]
[1688321663827,21.954,19.268,19.256,55.0]
[1688321664113,21.954,19.268,19.259,21.963]
[1688321664300,21.954,19.268,19.26,55.0]
[1688321665392,21.954,19.268,19.26,76.962]
[1688321665796,22.58,19.28,19.26,99.272]
[1688321666007,21.949,19.272,19.26,99.272]
[1688321669110,21.949,19.272,19.26,76.962]
[1688321675903,21.949,19.272,19.261,50.0]
[1688321676204,21.949,19.272,19.264,21.957]
[1688321676509,21.949,19.272,19.267,21.954]
[1688321676707,21.949,19.272,19.268,76.952]
[1688321676919,21.949,19.272,19.268,21.952]
[1688321677108,21.949,19.272,19.269,55.0]
[1688321678198,21.949,19.272,19.268,55.0]
[1688321680413,21.949,19.272,19.268,76.952]
[1688321684332,78.755,19.28,19.268,76.952]
[1688321684626,21.946,19.274,19.269,55.0]
[1688321684825,21.946,19.274,19.268,55.0]
[1688321685413,21.946,19.274,19.264,21.957]
[1688321687827,21.946,19.274,19.265,55.0]
[1688321688021,21.946,19.274,19.265,76.955]
[1688321694132,21.946,19.274,19.265,55.0]
[1688321694723,21.946,19.274,19.258,56.545]
[1688321695336,21.946,19.274,19.261,21.961]
[1688321696219,21.946,19.274,19.262,55.0]
[1688321696533,21.946,19.274,19.262,76.96]
[1688321697920,21.946,19.274,19.263,20.0]
[1688321698121,21.946,19.274,19.266,21.955]
[1688321698737,21.946,19.274,19.267,55.0]
[1688321699421,21.946,19.274,19.267,76.954]
[1688321702126,21.946,19.274,19.263,56.532]
[1688321702325,21.946,19.274,19.265,21.955]
[1688321703541,21.946,19.274,19.266,55.0]
[1688321703853,21.946,19.274,19.266,76.954]
[1688321706444,21.946,19.274,19.266,55.0]
[1688321706924,21.946,19.274,19.265,55.0]
[1688321708233,21.946,19.274,19.262,21.959]
[1688321708544,21.946,19.274,19.263,55.0]
[1688321713647,21.946,19.274,19.263,76.958]
[1688321719642,47.96761629,19.274,19.263,76.958]
[1688321720140,21.946,19.274,19.263,76.958]
[1688321726832,21.946,19.274,19.264,20.0]
[1688321727148,21.946,19.274,19.267,21.954]
[1688321727444,21.946,19.274,19.269,21.951]
[1688321727943,21.946,19.274,19.27,55.0]
[1688321728163,21.946,19.274,19.27,76.951]
[1688321731948,56.488,19.279,19.27,76.951]
[1688321732153,56.477,19.283,19.27,76.951]
[1688321733157,78.413,19.283,19.27,76.951]
[1688321736347,21.936,19.283,19.27,76.951]
[1688321736543,21.936,19.283,19.27,99.191]
[1688321736852,21.936,19.283,19.27,110.02819922]
[1688321739578,22.32,19.29,19.27,110.02819922]
[1688321739579,56.455,19.29,19.271,10.83719922]
[1688321739748,21.934,19.285,19.276,78.436]
[1688321740057,21.934,19.285,19.277,55.0]
[1688321740255,21.934,19.285,19.279,21.94]
[1688321740439,21.934,19.285,19.28,55.0]
[1688321741441,21.934,19.285,19.28,76.939]
[1688321746057,21.933,19.286,19.28,76.939]
[1688321748161,21.933,19.286,19.28,55.0]
[1688321748664,21.933,19.286,19.279,55.0]
[1688321749358,21.933,19.286,19.279,76.94]
[1688321751663,21.933,19.286,19.279,21.94]
[1688321758471,21.933,19.286,19.275,148.2361]
[1688321758767,21.933,19.286,19.276,55.0]
[1688321760170,21.933,19.286,19.278,21.941]
[1688321764478,21.933,19.286,19.279,55.0]
[1688321764666,21.933,19.286,19.281,21.938]
[1688321766575,21.933,19.286,19.282,55.0]
[1688321769482,21.931,19.288,19.282,76.936]
[1688321769672,21.929,19.289,19.282,76.936]
[1688321770181,56.441,19.295,19.282,76.936]
[1688321770386,20.0,19.294,19.282,76.936]
[1688321771072,21.928,19.291,19.282,175.8243]
[1688321774168,21.928,19.291,19.283,20.0]
[1688321774368,21.928,19.291,19.285,21.933]
[1688321774582,21.928,19.291,19.286,55.0]
[1688321774771,21.928,19.291,19.287,21.931]
[1688321774972,21.928,19.291,19.288,55.0]
[1688321776391,21.928,19.291,19.288,21.93]